[Event "Early-Titled-Tuesday-Blitz-February-06-2024"]
[Site "Chess.com"]
[Date "2024.02.06"]
[Round "6"]
[White "DeArron_Fox"]
[Black "Aslanov_Umid"]
[Result "0-1"]
[WhiteElo "2490"]
[BlackElo "2678"]
[TimeControl "180+1"]
[EndTime "9:09:00 PST"]
[Termination "Aslanov_Umid won by resignation"]

1. d4 {[%clk 0:03:00.9]} 1... d5 {[%clk 0:03:00.6]} 2. c4 {[%clk 0:03:00.2]}
2... c6 {[%clk 0:03:00.9]} 3. Nc3 {[%clk 0:03:00.5]} 3... Nf6 {[%clk 0:03:01.1]}
4. e3 {[%clk 0:03:01]} 4... e6 {[%clk 0:03:00.5]} 5. Nf3 {[%clk 0:03:01.5]} 5...
Nbd7 {[%clk 0:02:59.7]} 6. Qc2 {[%clk 0:03:02.1]} 6... Bd6 {[%clk 0:02:59.5]} 7.
Bd3 {[%clk 0:03:02.7]} 7... O-O {[%clk 0:02:59.6]} 8. O-O {[%clk 0:03:03.2]}
8... Re8 {[%clk 0:03:00]} 9. e4 {[%clk 0:02:58.2]} 9... dxe4 {[%clk 0:02:55.3]}
10. Nxe4 {[%clk 0:02:59.1]} 10... Nxe4 {[%clk 0:02:54.8]} 11. Bxe4 {[%clk
0:03:00]} 11... Nf6 {[%clk 0:02:54.8]} 12. Bg5 {[%clk 0:02:58.8]} 12... h6
{[%clk 0:02:55.4]} 13. Bh4 {[%clk 0:02:57.9]} 13... Qa5 {[%clk 0:02:12.6]} 14.
Bxf6 {[%clk 0:02:41.3]} 14... gxf6 {[%clk 0:02:12.6]} 15. Rfe1 {[%clk
0:02:28.1]} 15... Qh5 {[%clk 0:02:04.6]} 16. h3 {[%clk 0:02:02.3]} 16... Bd7
{[%clk 0:01:43.6]} 17. Nd2 {[%clk 0:01:45.9]} 17... f5 {[%clk 0:01:34.8]} 18.
Bf3 {[%clk 0:01:45.7]} 18... Qg5 {[%clk 0:01:35]} 19. Nf1 {[%clk 0:01:41.3]}
19... c5 {[%clk 0:01:18]} 20. Rad1 {[%clk 0:01:29]} 20... Red8 {[%clk
0:01:07.6]} 21. Bxb7 {[%clk 0:01:04.3]} 21... Rab8 {[%clk 0:01:07.7]} 22. dxc5
{[%clk 0:01:04.7]} 22... Bxc5 {[%clk 0:01:01.4]} 23. Bf3 {[%clk 0:01:03.9]}
23... Be8 {[%clk 0:00:52.6]} 24. a3 {[%clk 0:00:54.7]} 24... a5 {[%clk
0:00:51.8]} 25. Qc3 {[%clk 0:00:46.9]} 25... Ba4 {[%clk 0:00:40.8]} 26. Rxd8+
{[%clk 0:00:36.1]} 26... Qxd8 {[%clk 0:00:41.7]} 27. Ng3 {[%clk 0:00:17]} 27...
Bd4 {[%clk 0:00:40.3]} 28. Qc1 {[%clk 0:00:03.4]} 28... Rxb2 {[%clk 0:00:23.4]}
29. Re2 {[%clk 0:00:03.3]} 29... Rxe2 {[%clk 0:00:18.4]} 30. Nxe2 {[%clk
0:00:04.2]} 30... Bg7 {[%clk 0:00:18.2]} 31. g3 {[%clk 0:00:03.3]} 31... Qc7
{[%clk 0:00:17]} 32. Kg2 {[%clk 0:00:03.4]} 32... Qc5 {[%clk 0:00:17.2]} 33. Qd2
{[%clk 0:00:01.8]} 33... Bb3 {[%clk 0:00:15.4]} 34. Qd8+ {[%clk 0:00:01.9]}
34... Kh7 {[%clk 0:00:15.6]} 35. Qa8 {[%clk 0:00:01.9]} 35... Bxc4 {[%clk
0:00:15.3]} 36. Qb7 {[%clk 0:00:02.6]} 36... Bd5 {[%clk 0:00:11.5]} 37. Bxd5
{[%clk 0:00:02.5]} 37... Qxd5+ {[%clk 0:00:12.1]} 38. Qxd5 {[%clk 0:00:03.1]}
38... exd5 {[%clk 0:00:13]} 39. Kf3 {[%clk 0:00:03.2]} 39... Bb2 {[%clk
0:00:13.5]} 40. a4 {[%clk 0:00:03.1]} 40... Be5 {[%clk 0:00:13.1]} 41. Nf4
{[%clk 0:00:02.2]} 41... d4 {[%clk 0:00:11.4]} 42. Nd3 {[%clk 0:00:01.9]} 42...
Bd6 {[%clk 0:00:11.1]} 43. Nc1 {[%clk 0:00:02.1]} 43... Kg6 {[%clk 0:00:11.2]}
44. Nb3 {[%clk 0:00:02.5]} 44... d3 {[%clk 0:00:10.7]} 45. Nxa5 {[%clk
0:00:02.9]} 45... d2 {[%clk 0:00:10.3]} 46. Ke2 {[%clk 0:00:02.9]} 46... f4
{[%clk 0:00:10.9]} 47. g4 {[%clk 0:00:02.1]} 47... f3+ {[%clk 0:00:10.7]} 48.
Kxd2 {[%clk 0:00:01.6]} 48... Bb4+ {[%clk 0:00:10.9]} 49. Ke3 {[%clk 0:00:02.5]}
49... Bxa5 {[%clk 0:00:11.6]} 50. Kxf3 {[%clk 0:00:03.4]} 50... Kg5 {[%clk
0:00:12.2]} 51. Kg2 {[%clk 0:00:01.8]} 51... Bc7 {[%clk 0:00:12.3]} 52. f3
{[%clk 0:00:02]} 52... Kf4 {[%clk 0:00:12.9]} 53. h4 {[%clk 0:00:01.7]} 53...
Bd8 {[%clk 0:00:11.4]} 54. g5 {[%clk 0:00:01.9]} 54... hxg5 {[%clk 0:00:11.3]}
55. h5 {[%clk 0:00:02.6]} 55... Kf5 {[%clk 0:00:11]} 56. Kg3 {[%clk 0:00:02.3]}
56... Bc7+ {[%clk 0:00:11.6]} 57. Kh3 {[%clk 0:00:02.5]} 57... Kf4 {[%clk
0:00:08.8]} 58. h6 {[%clk 0:00:01.7]} 58... Kf5 {[%clk 0:00:07.7]} 59. h7 {[%clk
0:00:01.8]} 59... Be5 {[%clk 0:00:08.3]} 60. a5 {[%clk 0:00:02.4]} 60... Kg6
{[%clk 0:00:07.9]} 61. Kg4 {[%clk 0:00:02.8]} 61... f5+ {[%clk 0:00:07.3]} 62.
Kh3 {[%clk 0:00:03.1]} 62... Kxh7 {[%clk 0:00:07.9]} 63. Kg2 {[%clk 0:00:01.9]}
63... Bd4 {[%clk 0:00:08.2]} 64. a6 {[%clk 0:00:02]} 64... Kg6 {[%clk
0:00:08.7]} 65. f4 {[%clk 0:00:02.8]} 65... g4 {[%clk 0:00:08.4]} 66. Kf1 {[%clk
0:00:01.5]} 66... Kf6 {[%clk 0:00:08.9]} 67. Ke2 {[%clk 0:00:02.4]} 67... Ke6
{[%clk 0:00:09.5]} 68. Kd3 {[%clk 0:00:03.3]} 68... Kd5 {[%clk 0:00:10.1]} 69.
Ke2 {[%clk 0:00:03]} 69... Ba7 {[%clk 0:00:10.7]} 70. Kd3 {[%clk 0:00:03.1]}
70... Bb6 {[%clk 0:00:11.5]} 71. Kc3 {[%clk 0:00:02.8]} 71... Ke4 {[%clk
0:00:12]} 72. Kc4 {[%clk 0:00:03.7]} 72... Kxf4 {[%clk 0:00:12.6]} 73. Kb5
{[%clk 0:00:04.6]} 73... Be3 {[%clk 0:00:13.1]} 74. Kc6 {[%clk 0:00:05.5]} 74...
Kf3 {[%clk 0:00:13.7]} 75. Kb7 {[%clk 0:00:06.4]} 75... g3 {[%clk 0:00:14.3]}
76. a7 {[%clk 0:00:07.1]} 76... Bxa7 {[%clk 0:00:14.7]} 77. Kxa7 {[%clk
0:00:08]} 77... g2 {[%clk 0:00:15.4]} 78. Kb7 {[%clk 0:00:08.9]} 78... g1=Q
{[%clk 0:00:16.3]} 0-1

[Event "Early-Titled-Tuesday-Blitz-February-06-2024"]
[Site "Chess.com"]
[Date "2024.02.06"]
[Round "6"]
[White "atomicmate123"]
[Black "Irina_Mikhaylova"]
[Result "1-0"]
[WhiteElo "2286"]
[BlackElo "2318"]
[TimeControl "180+1"]
[EndTime "9:09:01 PST"]
[Termination "atomicmate123 won by checkmate"]

1. e4 {[%clk 0:03:00.9]} 1... c5 {[%clk 0:02:53.2]} 2. Nf3 {[%clk 0:03:00.4]}
2... Nc6 {[%clk 0:02:53.6]} 3. d4 {[%clk 0:02:56.6]} 3... cxd4 {[%clk
0:02:53.6]} 4. Nxd4 {[%clk 0:02:57.5]} 4... e5 {[%clk 0:02:54.2]} 5. Nb5 {[%clk
0:02:57.3]} 5... d6 {[%clk 0:02:53.4]} 6. N1c3 {[%clk 0:02:57.3]} 6... a6 {[%clk
0:02:53.5]} 7. Na3 {[%clk 0:02:57.5]} 7... b5 {[%clk 0:02:54.1]} 8. Nd5 {[%clk
0:02:57.6]} 8... Nge7 {[%clk 0:02:54.7]} 9. c3 {[%clk 0:02:54.9]} 9... Nxd5
{[%clk 0:02:54.4]} 10. exd5 {[%clk 0:02:53.4]} 10... Ne7 {[%clk 0:02:54.5]} 11.
c4 {[%clk 0:02:41.7]} 11... b4 {[%clk 0:02:54.2]} 12. Qa4+ {[%clk 0:02:37.2]}
12... Bd7 {[%clk 0:02:54.3]} 13. Qxb4 {[%clk 0:02:37]} 13... Nf5 {[%clk
0:02:51.4]} 14. Qc3 {[%clk 0:02:20.7]} 14... Be7 {[%clk 0:02:49.8]} 15. Bd3
{[%clk 0:02:18.4]} 15... O-O {[%clk 0:02:49.2]} 16. O-O {[%clk 0:02:11.5]} 16...
Bf6 {[%clk 0:02:39.7]} 17. Qc2 {[%clk 0:02:10.6]} 17... Nd4 {[%clk 0:02:38.3]}
18. Qd1 {[%clk 0:01:58.2]} 18... Bg5 {[%clk 0:02:22.7]} 19. Qh5 {[%clk
0:01:47.4]} 19... h6 {[%clk 0:02:15.1]} 20. Bxg5 {[%clk 0:01:40]} 20... Qxg5
{[%clk 0:02:15.2]} 21. Qxg5 {[%clk 0:01:39.7]} 21... hxg5 {[%clk 0:02:15.6]} 22.
Nc2 {[%clk 0:01:37.4]} 22... Nxc2 {[%clk 0:01:48.9]} 23. Bxc2 {[%clk 0:01:38.3]}
23... f5 {[%clk 0:01:49.2]} 24. f3 {[%clk 0:01:31.3]} 24... Rfb8 {[%clk
0:01:31.9]} 25. b3 {[%clk 0:01:31.1]} 25... a5 {[%clk 0:01:32.1]} 26. a4 {[%clk
0:01:30.3]} 26... Kf7 {[%clk 0:01:28.6]} 27. Rae1 {[%clk 0:01:28]} 27... Kf6
{[%clk 0:01:28.3]} 28. Re2 {[%clk 0:01:25.8]} 28... Rh8 {[%clk 0:01:22.1]} 29.
h3 {[%clk 0:01:24.8]} 29... Rh4 {[%clk 0:01:21.1]} 30. Kh2 {[%clk 0:01:09.4]}
30... Rah8 {[%clk 0:01:19.2]} 31. Kg3 {[%clk 0:01:00.7]} 31... Rb8 {[%clk
0:01:03.2]} 32. Kf2 {[%clk 0:00:56.8]} 32... g6 {[%clk 0:00:48.5]} 33. Kg3
{[%clk 0:00:50.5]} 33... Rbh8 {[%clk 0:00:46.3]} 34. Kf2 {[%clk 0:00:49.1]}
34... Rb8 {[%clk 0:00:46.1]} 35. Kg3 {[%clk 0:00:49.1]} 35... Rd4 {[%clk
0:00:32.7]} 36. Rd1 {[%clk 0:00:43.2]} 36... Rf4 {[%clk 0:00:32.6]} 37. Kh2
{[%clk 0:00:33.9]} 37... Rh4 {[%clk 0:00:32.2]} 38. Kg3 {[%clk 0:00:33.8]} 38...
Rhh8 {[%clk 0:00:24]} 39. Kf2 {[%clk 0:00:32.2]} 39... g4 {[%clk 0:00:20.1]} 40.
fxg4 {[%clk 0:00:29.5]} 40... fxg4 {[%clk 0:00:21]} 41. Kg3 {[%clk 0:00:22]}
41... gxh3 {[%clk 0:00:20.9]} 42. Rf1+ {[%clk 0:00:20.5]} 42... Ke7 {[%clk
0:00:21]} 43. gxh3 {[%clk 0:00:18.2]} 43... Rxh3+ {[%clk 0:00:19.4]} 44. Kg2
{[%clk 0:00:18.2]} 44... Rbh8 {[%clk 0:00:19.4]} 45. Kf2 {[%clk 0:00:14.7]}
45... Bf5 {[%clk 0:00:18.4]} 46. Ke1 {[%clk 0:00:11.8]} 46... Rh2 {[%clk
0:00:16.4]} 47. Rxh2 {[%clk 0:00:10.4]} 47... Rxh2 {[%clk 0:00:16.4]} 48. Bxf5
{[%clk 0:00:11.2]} 48... gxf5 {[%clk 0:00:16.9]} 49. Rxf5 {[%clk 0:00:12]} 49...
Rh3 {[%clk 0:00:17]} 50. Rg5 {[%clk 0:00:11.2]} 50... Rxb3 {[%clk 0:00:16.8]}
51. Rg7+ {[%clk 0:00:11.4]} 51... Kf6 {[%clk 0:00:17.1]} 52. Rd7 {[%clk
0:00:11.6]} 52... e4 {[%clk 0:00:17.3]} 53. Rxd6+ {[%clk 0:00:11.9]} 53... Ke5
{[%clk 0:00:17.8]} 54. Re6+ {[%clk 0:00:12.1]} 54... Kf4 {[%clk 0:00:18.2]} 55.
d6 {[%clk 0:00:11.7]} 55... Ke3 {[%clk 0:00:18.7]} 56. Kf1 {[%clk 0:00:10.6]}
56... Rd3 {[%clk 0:00:17.7]} 57. c5 {[%clk 0:00:09.9]} 57... Kf3 {[%clk
0:00:17.9]} 58. Rf6+ {[%clk 0:00:09.3]} 58... Ke3 {[%clk 0:00:18.3]} 59. c6
{[%clk 0:00:08.2]} 59... Rd1+ {[%clk 0:00:18.7]} 60. Kg2 {[%clk 0:00:08.6]}
60... Rd2+ {[%clk 0:00:19.1]} 61. Kg3 {[%clk 0:00:09]} 61... Rd1 {[%clk
0:00:19.6]} 62. c7 {[%clk 0:00:09.4]} 62... Rc1 {[%clk 0:00:18.9]} 63. d7 {[%clk
0:00:09.8]} 63... Rxc7 {[%clk 0:00:18.8]} 64. d8=Q {[%clk 0:00:10.1]} 64... Rc3
{[%clk 0:00:19.3]} 65. Qb6+ {[%clk 0:00:10.3]} 65... Kd2+ {[%clk 0:00:18.7]} 66.
Kg4 {[%clk 0:00:09]} 66... Rd3 {[%clk 0:00:18.8]} 67. Qb2+ {[%clk 0:00:08.3]}
67... Ke3 {[%clk 0:00:18.5]} 68. Qf2# {[%clk 0:00:07.9]} 1-0

[Event "Early-Titled-Tuesday-Blitz-February-06-2024"]
[Site "Chess.com"]
[Date "2024.02.06"]
[Round "6"]
[White "elchacal664"]
[Black "HanSchut"]
[Result "1/2-1/2"]
[WhiteElo "2451"]
[BlackElo "2257"]
[TimeControl "180+1"]
[EndTime "9:09:03 PST"]
[Termination "Game drawn by repetition"]

1. e4 {[%clk 0:03:00.9]} 1... c5 {[%clk 0:02:59.7]} 2. Nc3 {[%clk 0:02:59.5]}
2... Nc6 {[%clk 0:02:59.6]} 3. Bc4 {[%clk 0:02:59.1]} 3... Nf6 {[%clk
0:02:56.6]} 4. f4 {[%clk 0:02:59.1]} 4... e6 {[%clk 0:02:57.1]} 5. d3 {[%clk
0:02:58.8]} 5... d5 {[%clk 0:02:57.3]} 6. Bb3 {[%clk 0:02:49.2]} 6... c4 {[%clk
0:02:57.9]} 7. dxc4 {[%clk 0:02:48.7]} 7... dxe4 {[%clk 0:02:53.5]} 8. Be3
{[%clk 0:02:38.3]} 8... Qxd1+ {[%clk 0:02:49.7]} 9. Rxd1 {[%clk 0:02:38.7]} 9...
Bb4 {[%clk 0:02:50.2]} 10. Bd2 {[%clk 0:02:32.3]} 10... O-O {[%clk 0:02:41.1]}
11. Nge2 {[%clk 0:02:26.6]} 11... e5 {[%clk 0:02:41.1]} 12. Nd5 {[%clk
0:02:21.8]} 12... Bxd2+ {[%clk 0:02:18.6]} 13. Rxd2 {[%clk 0:02:22.7]} 13...
Nxd5 {[%clk 0:02:11]} 14. cxd5 {[%clk 0:02:21.3]} 14... Na5 {[%clk 0:02:10.3]}
15. fxe5 {[%clk 0:02:18.2]} 15... Nxb3 {[%clk 0:02:09.8]} 16. axb3 {[%clk
0:02:16.9]} 16... Re8 {[%clk 0:02:10.2]} 17. d6 {[%clk 0:02:05.3]} 17... Bd7
{[%clk 0:02:10.1]} 18. Kf2 {[%clk 0:01:59.4]} 18... Rxe5 {[%clk 0:02:07.2]} 19.
Ke3 {[%clk 0:01:59.8]} 19... f5 {[%clk 0:02:03.2]} 20. g3 {[%clk 0:01:57.3]}
20... Rc8 {[%clk 0:01:53.4]} 21. c4 {[%clk 0:01:56.1]} 21... b5 {[%clk
0:01:52.9]} 22. Rc1 {[%clk 0:01:51.4]} 22... Rec5 {[%clk 0:01:46.5]} 23. Rdc2
{[%clk 0:01:31]} 23... Be6 {[%clk 0:01:28.6]} 24. Nd4 {[%clk 0:01:25.4]} 24...
Kf7 {[%clk 0:01:28.6]} 25. Nxb5 {[%clk 0:01:22.8]} 25... a6 {[%clk 0:01:17.9]}
26. Nc7 {[%clk 0:01:21]} 26... a5 {[%clk 0:01:11.7]} 27. Rd2 {[%clk 0:01:02.2]}
27... g5 {[%clk 0:00:58]} 28. Rcd1 {[%clk 0:00:50.8]} 28... a4 {[%clk
0:00:51.5]} 29. Nxe6 {[%clk 0:00:48.7]} 29... Kxe6 {[%clk 0:00:51.4]} 30. d7
{[%clk 0:00:48.9]} 30... Rd8 {[%clk 0:00:52]} 31. Rd6+ {[%clk 0:00:47.3]} 31...
Ke7 {[%clk 0:00:52.3]} 32. bxa4 {[%clk 0:00:28.5]} 32... Rxc4 {[%clk 0:00:48.3]}
33. R1d4 {[%clk 0:00:24.5]} 33... Rxd4 {[%clk 0:00:43.9]} 34. Rxd4 {[%clk
0:00:24.4]} 34... Rxd7 {[%clk 0:00:41.7]} 35. Rxd7+ {[%clk 0:00:25.3]} 35...
Kxd7 {[%clk 0:00:42.4]} 36. g4 {[%clk 0:00:20.7]} 36... f4+ {[%clk 0:00:25.4]}
37. Kxe4 {[%clk 0:00:20.7]} 37... Kc6 {[%clk 0:00:26]} 38. h4 {[%clk 0:00:19.1]}
38... h6 {[%clk 0:00:25.8]} 39. hxg5 {[%clk 0:00:18.9]} 39... hxg5 {[%clk
0:00:26.7]} 40. b4 {[%clk 0:00:18.4]} 40... Kb6 {[%clk 0:00:27.1]} 41. Kd4
{[%clk 0:00:18.8]} 41... Kc6 {[%clk 0:00:27]} 42. Kc4 {[%clk 0:00:19]} 42... Kb6
{[%clk 0:00:27.5]} 43. a5+ {[%clk 0:00:18.9]} 43... Ka6 {[%clk 0:00:27.1]} 44.
Kd4 {[%clk 0:00:19]} 44... Kb5 {[%clk 0:00:27.1]} 45. Ke4 {[%clk 0:00:18.9]}
45... Ka6 {[%clk 0:00:27.5]} 46. Kf3 {[%clk 0:00:19.1]} 46... Kb5 {[%clk
0:00:28.1]} 47. Ke2 {[%clk 0:00:19.7]} 47... Ka6 {[%clk 0:00:28.8]} 48. Kd3
{[%clk 0:00:19.9]} 48... Kb5 {[%clk 0:00:29.3]} 49. Kd2 {[%clk 0:00:19.9]} 49...
Ka6 {[%clk 0:00:29.6]} 50. Ke2 {[%clk 0:00:20.2]} 50... Kb5 {[%clk 0:00:30.3]}
51. Kf3 {[%clk 0:00:21.1]} 51... Ka6 {[%clk 0:00:30.9]} 52. Ke4 {[%clk 0:00:22]}
52... Kb5 {[%clk 0:00:27]} 53. Kd3 {[%clk 0:00:20.5]} 53... Ka6 {[%clk
0:00:24.8]} 54. Kc4 {[%clk 0:00:20]} 54... Kb7 {[%clk 0:00:25.2]} 55. b5 {[%clk
0:00:19.6]} 55... Ka7 {[%clk 0:00:25.3]} 56. a6 {[%clk 0:00:19.8]} 56... Kb6
{[%clk 0:00:25.8]} 57. Kd3 {[%clk 0:00:20.6]} 57... Ka7 {[%clk 0:00:26.2]} 58.
Ke2 {[%clk 0:00:21]} 58... Kb6 {[%clk 0:00:26.8]} 59. Kf3 {[%clk 0:00:21.4]}
59... Ka7 {[%clk 0:00:27.2]} 60. Ke4 {[%clk 0:00:22]} 60... Kb6 {[%clk
0:00:27.8]} 61. Kd4 {[%clk 0:00:21.6]} 61... Ka7 {[%clk 0:00:28.3]} 62. Kd3
{[%clk 0:00:17.5]} 62... Kb6 {[%clk 0:00:28.3]} 63. Ke2 {[%clk 0:00:17.6]} 63...
Ka7 {[%clk 0:00:28.7]} 64. Kf3 {[%clk 0:00:17.3]} 64... Kb6 {[%clk 0:00:29.3]}
65. Kf2 {[%clk 0:00:17.9]} 65... Ka7 {[%clk 0:00:29.8]} 66. Kg2 {[%clk
0:00:17.9]} 66... Kb6 {[%clk 0:00:30.3]} 67. Kf3 {[%clk 0:00:13.3]} 67... Ka7
{[%clk 0:00:30.5]} 68. Ke4 {[%clk 0:00:13.4]} 68... Kb6 {[%clk 0:00:31.2]} 69.
Kd4 {[%clk 0:00:13.3]} 69... Ka7 {[%clk 0:00:31.7]} 70. Kd3 {[%clk 0:00:13.3]}
70... Kb6 {[%clk 0:00:31.9]} 71. Ke2 {[%clk 0:00:13.1]} 71... Ka7 {[%clk
0:00:32.4]} 72. Kf3 {[%clk 0:00:12.7]} 72... Kb6 {[%clk 0:00:33]} 73. Ke4 {[%clk
0:00:12.6]} 73... Ka7 {[%clk 0:00:30.2]} 74. Kd4 {[%clk 0:00:12.5]} 74... Kb6
{[%clk 0:00:30.5]} 75. Kd3 {[%clk 0:00:12.6]} 75... Ka7 {[%clk 0:00:31]} 76. Kd2
{[%clk 0:00:11.3]} 76... Kb6 {[%clk 0:00:31.2]} 77. Kd1 {[%clk 0:00:11.5]} 77...
Ka7 {[%clk 0:00:31.7]} 78. Ke1 {[%clk 0:00:11.6]} 78... Kb6 {[%clk 0:00:32.4]}
79. Kf1 {[%clk 0:00:11.4]} 79... Ka7 {[%clk 0:00:33]} 80. Kg1 {[%clk 0:00:11.8]}
80... Kb6 {[%clk 0:00:33.6]} 81. Kh1 {[%clk 0:00:12.1]} 81... Ka7 {[%clk
0:00:34.3]} 82. Kh2 {[%clk 0:00:12.2]} 82... Kb6 {[%clk 0:00:34.8]} 83. Kh3
{[%clk 0:00:12.2]} 83... Ka7 {[%clk 0:00:35.4]} 84. Kg2 {[%clk 0:00:12.5]} 84...
Kb6 {[%clk 0:00:35.8]} 85. Kf3 {[%clk 0:00:13.1]} 1/2-1/2

[Event "Early-Titled-Tuesday-Blitz-February-06-2024"]
[Site "Chess.com"]
[Date "2024.02.06"]
[Round "6"]
[White "JonasEilenberg"]
[Black "IMRosen"]
[Result "1/2-1/2"]
[WhiteElo "2535"]
[BlackElo "2692"]
[TimeControl "180+1"]
[EndTime "9:09:05 PST"]
[Termination "Game drawn - insufficient material"]

1. e4 {[%clk 0:03:00.9]} 1... c5 {[%clk 0:02:59.9]} 2. Nf3 {[%clk 0:03:01.5]}
2... Nc6 {[%clk 0:02:59.1]} 3. Bc4 {[%clk 0:03:01.9]} 3... e6 {[%clk 0:02:58.9]}
4. O-O {[%clk 0:03:02.4]} 4... a6 {[%clk 0:02:58.1]} 5. d4 {[%clk 0:03:02.3]}
5... cxd4 {[%clk 0:02:56.8]} 6. Nxd4 {[%clk 0:03:03.2]} 6... Qc7 {[%clk
0:02:55.3]} 7. Bb3 {[%clk 0:03:02.8]} 7... Nf6 {[%clk 0:02:52.6]} 8. Nc3 {[%clk
0:03:02.2]} 8... Nxd4 {[%clk 0:02:47.2]} 9. Qxd4 {[%clk 0:03:01.9]} 9... Bd6
{[%clk 0:02:47.9]} 10. h3 {[%clk 0:02:56.7]} 10... b5 {[%clk 0:02:47.9]} 11. Qd3
{[%clk 0:02:41.5]} 11... Bb7 {[%clk 0:02:41.9]} 12. Re1 {[%clk 0:02:41.9]} 12...
O-O {[%clk 0:02:32.4]} 13. Bg5 {[%clk 0:02:42.1]} 13... Bh2+ {[%clk 0:02:28.3]}
14. Kh1 {[%clk 0:02:34.3]} 14... Be5 {[%clk 0:02:29.2]} 15. Rad1 {[%clk
0:02:33]} 15... Rac8 {[%clk 0:02:17.2]} 16. Bxf6 {[%clk 0:02:21.7]} 16... Bxf6
{[%clk 0:02:15.1]} 17. Qxd7 {[%clk 0:02:22.2]} 17... Bxc3 {[%clk 0:02:09.8]} 18.
bxc3 {[%clk 0:02:21.4]} 18... Bc6 {[%clk 0:01:59.9]} 19. Qxc7 {[%clk 0:02:19.6]}
19... Rxc7 {[%clk 0:02:00.8]} 20. Rd6 {[%clk 0:02:19.7]} 20... Rfc8 {[%clk
0:01:59.5]} 21. Red1 {[%clk 0:02:16.1]} 21... Kf8 {[%clk 0:02:00.1]} 22. f3
{[%clk 0:02:14.5]} 22... Ke7 {[%clk 0:02:00.5]} 23. c4 {[%clk 0:01:43.5]} 23...
bxc4 {[%clk 0:01:33.5]} 24. Bxc4 {[%clk 0:01:44.4]} 24... Bxe4 {[%clk
0:01:33.8]} 25. Bxa6 {[%clk 0:01:44.3]} 25... Bxc2 {[%clk 0:01:33.5]} 26. Bxc8
{[%clk 0:01:31.4]} 26... Bxd1 {[%clk 0:01:29.7]} 27. Rxd1 {[%clk 0:01:32.3]}
27... Rxc8 {[%clk 0:01:30.3]} 28. Rd2 {[%clk 0:01:33.2]} 28... Rc1+ {[%clk
0:01:23.8]} 29. Kh2 {[%clk 0:01:33.1]} 29... Ra1 {[%clk 0:01:22.5]} 30. Kg3
{[%clk 0:01:32.3]} 30... e5 {[%clk 0:01:21.8]} 31. Kf2 {[%clk 0:01:31.1]} 31...
Ke6 {[%clk 0:01:17.2]} 32. Ke3 {[%clk 0:01:31.4]} 32... f5 {[%clk 0:01:17.4]}
33. Rb2 {[%clk 0:01:31.2]} 33... f4+ {[%clk 0:01:07.5]} 34. Kf2 {[%clk
0:01:11.2]} 34... Kf5 {[%clk 0:01:06.7]} 35. Ke2 {[%clk 0:01:09]} 35... h6
{[%clk 0:01:02.8]} 36. Kf2 {[%clk 0:01:09.2]} 36... g6 {[%clk 0:01:00.8]} 37.
Ke2 {[%clk 0:01:07.7]} 37... Rg1 {[%clk 0:01:01]} 38. Kf2 {[%clk 0:01:07.7]}
38... Ra1 {[%clk 0:01:01.7]} 39. Ke2 {[%clk 0:01:07.4]} 39... Kg5 {[%clk
0:00:59.8]} 40. Kf2 {[%clk 0:01:07.2]} 40... Kh4 {[%clk 0:00:57]} 41. Re2 {[%clk
0:01:06.4]} 41... g5 {[%clk 0:00:52]} 42. Rb2 {[%clk 0:01:03.1]} 42... h5 {[%clk
0:00:50.2]} 43. Re2 {[%clk 0:00:37.2]} 43... g4 {[%clk 0:00:41.4]} 44. hxg4
{[%clk 0:00:28.1]} 44... hxg4 {[%clk 0:00:41.7]} 45. fxg4 {[%clk 0:00:29]} 45...
Kxg4 {[%clk 0:00:40.7]} 46. Rxe5 {[%clk 0:00:29.6]} 46... Rxa2+ {[%clk
0:00:41.2]} 47. Kg1 {[%clk 0:00:30.2]} 47... Ra1+ {[%clk 0:00:38.7]} 48. Kh2
{[%clk 0:00:29.2]} 48... Ra2 {[%clk 0:00:32.2]} 49. Kg1 {[%clk 0:00:28.9]} 49...
Kh4 {[%clk 0:00:16.6]} 50. Rb5 {[%clk 0:00:22.8]} 50... Rc2 {[%clk 0:00:14.6]}
51. Rb3 {[%clk 0:00:21.2]} 51... Kg4 {[%clk 0:00:14.4]} 52. Kh2 {[%clk
0:00:21.2]} 52... Rd2 {[%clk 0:00:13.9]} 53. Kg1 {[%clk 0:00:21.3]} 53... Rd7
{[%clk 0:00:14.5]} 54. Kh2 {[%clk 0:00:21.2]} 54... Rh7+ {[%clk 0:00:15.2]} 55.
Kg1 {[%clk 0:00:21.5]} 55... Rh6 {[%clk 0:00:16]} 56. Kf2 {[%clk 0:00:21.5]}
56... Re6 {[%clk 0:00:16.2]} 57. Kg1 {[%clk 0:00:21.6]} 57... Re5 {[%clk
0:00:16.2]} 58. Kh2 {[%clk 0:00:21.4]} 58... Re3 {[%clk 0:00:13.8]} 59. Rb8
{[%clk 0:00:18.3]} 59... Re5 {[%clk 0:00:11.7]} 60. Rb3 {[%clk 0:00:15.4]} 60...
Rh5+ {[%clk 0:00:10.3]} 61. Kg1 {[%clk 0:00:14.9]} 61... Rh8 {[%clk 0:00:11]}
62. Kf2 {[%clk 0:00:15.2]} 62... Rd8 {[%clk 0:00:11.8]} 63. Kg1 {[%clk
0:00:15.3]} 63... Kf5 {[%clk 0:00:12.4]} 64. Kf2 {[%clk 0:00:15.2]} 64... Kg4
{[%clk 0:00:11.4]} 65. Kg1 {[%clk 0:00:15.3]} 65... Rd6 {[%clk 0:00:12.1]} 66.
Kf2 {[%clk 0:00:15.6]} 66... Rd4 {[%clk 0:00:12.9]} 67. Kg1 {[%clk 0:00:15.8]}
67... Rc4 {[%clk 0:00:13.7]} 68. Kf2 {[%clk 0:00:15.8]} 68... Kf5 {[%clk
0:00:14.4]} 69. Kg1 {[%clk 0:00:14.6]} 69... Ke4 {[%clk 0:00:14.4]} 70. Kf2
{[%clk 0:00:15]} 70... Rc2+ {[%clk 0:00:14.4]} 71. Kg1 {[%clk 0:00:15.5]} 71...
Re2 {[%clk 0:00:14.6]} 72. Kf1 {[%clk 0:00:14.1]} 72... Re3 {[%clk 0:00:13.7]}
73. Rxe3+ {[%clk 0:00:13.1]} 73... Kxe3 {[%clk 0:00:14.6]} 74. Ke1 {[%clk
0:00:13.4]} 74... Ke4 {[%clk 0:00:13.6]} 75. Kf2 {[%clk 0:00:13.5]} 75... Kf5
{[%clk 0:00:14.1]} 76. g3 {[%clk 0:00:13.8]} 76... Kg4 {[%clk 0:00:14.1]} 77.
gxf4 {[%clk 0:00:14.1]} 77... Kxf4 {[%clk 0:00:15]} 1/2-1/2